{"text_format":"3","workbook":"xlsx","n_sheets":2,"sheets":["Kehalise aktiivsuse jälgimine","Tegevuste loend"],"not_rendered":{"charts":1,"defined_names":15},"read":"whole","date_system":"1900"}

{"sheet":"Kehalise aktiivsuse jälgimine","index":0,"n_rows":23,"n_cols":11,"rows_kept":23,"merged":[[0,0,0,2],[0,3,3,10],[1,0,1,2],[2,0,5,0],[2,1,3,1],[4,1,5,1],[6,0,9,0],[6,1,7,1],[8,1,9,1],[10,0,13,0],[10,1,11,1],[12,1,13,1],[14,0,17,0],[14,1,15,1],[16,1,17,1],[18,0,21,0],[18,1,19,1],[20,1,21,1],[22,0,23,0],[22,1,23,1],[22,2,23,2]]}
["Kehalise aktiivsuse jälgimine"]
["Jälgige oma 5 peamist tegevust! Asendage all olev tegevusteave selliste tegevustega, mida enim harrastate. Seejärel sisestage nende tegevuste kohta kirjed tegevuselogisse, et jälgida oma arengut."]
["Jalgrattasõit",{"$f":"SUMIF(Loend[Tegevus],Kategooria1,Loend[Kokku])","v":{"v":19.46,"d":"19.5"}}]
[null,null,"Miilid"]
[null,{"$f":"SUMIF(Loend[Tegevus],Kategooria1,Loend[Kalorid])","v":847},"Kalorid","Kuupäev","Tegevus","Alguskellaaeg","Kestus","Kokku","Ühik","Kalorid","Märkus"]
[{"$nulls":3},"Kuupäev","Jalgrattasõit","16:00:00","00:23:00",3.66,{"$f":"IFERROR(VLOOKUP(Loend[[#This Row],[Tegevus]],TegevuseOtsing,2,FALSE),\"\")","v":"Miilid"},173,"Palav ja niiske"]
["Ujumine",{"$f":"SUMIF(Loend[Tegevus],Kategooria2,Loend[Kokku])","v":{"v":1700,"d":"1700.0"}},null,"Kuupäev","Jalgrattasõit","14:30:00","00:45:00",7.8,{"$f":"IFERROR(VLOOKUP(Loend[[#This Row],[Tegevus]],TegevuseOtsing,2,FALSE),\"\")","v":"Miilid"},330,"Jahe pärastlõuna"]
[null,null,"meetrit","Kuupäev","Ujumine","10:00:00","00:30:00",1700,{"$f":"IFERROR(VLOOKUP(Loend[[#This Row],[Tegevus]],TegevuseOtsing,2,FALSE),\"\")","v":"meetrit"},237,"Eelmisel ööl magasin hästi"]
[null,{"$f":"SUMIF(Loend[Tegevus],Kategooria2,Loend[Kalorid])","v":237},"kalorit","Kuupäev","3. tegevus","13:30:00","00:35:00",3227,{"$f":"IFERROR(VLOOKUP(Loend[[#This Row],[Tegevus]],TegevuseOtsing,2,FALSE),\"\")","v":"sammu"},150]
[{"$nulls":3},"Kuupäev","Tegevus 4","05:30:00","00:30:00",30,{"$f":"IFERROR(VLOOKUP(Loend[[#This Row],[Tegevus]],TegevuseOtsing,2,FALSE),\"\")","v":"kordust"},115]
["3. tegevus",{"$f":"SUMIF(Loend[Tegevus],Kategooria3,Loend[Kokku])","v":{"v":3227,"d":"3227.0"}},null,"Kuupäev","5. tegevus","06:00:00","00:45:00",5,{"$f":"IFERROR(VLOOKUP(Loend[[#This Row],[Tegevus]],TegevuseOtsing,2,FALSE),\"\")","v":"Miilid"},345]
[null,null,"sammu","Kuupäev","Jalgrattasõit","10:00:00","00:40:00",8,{"$f":"IFERROR(VLOOKUP(Loend[[#This Row],[Tegevus]],TegevuseOtsing,2,FALSE),\"\")","v":"Miilid"},344]
[null,{"$f":"SUMIF(Loend[Tegevus],Kategooria3,Loend[Kalorid])","v":150},"kalorit"]
[]
["Tegevus 4",{"$f":"SUMIF(Loend[Tegevus],Kategooria4,Loend[Kokku])","v":{"v":30,"d":"30.0"}}]
[null,null,"kordust"]
[null,{"$f":"SUMIF(Loend[Tegevus],Kategooria4,Loend[Kalorid])","v":115},"Kalorid"]
[]
["5. tegevus",{"$f":"SUMIF(Loend[Tegevus],Kategooria5,Loend[Kokku])","v":{"v":5,"d":"5.0"}}]
[null,null,"Miilid"]
[null,{"$f":"SUMIF(Loend[Tegevus],Kategooria5,Loend[Kalorid])","v":345},"Kalorid"]
[]
["Kokku",{"$f":"SUM(B21,B17,B13,B9,B5)","v":1694},"kalorit"]

{"sheet":"Tegevuste loend","index":1,"n_rows":8,"n_cols":3,"rows_kept":8,"hidden":true,"merged":[[0,1,0,2],[1,1,1,2]]}
[null,"Tegevuste loend"]
[null,"All olev loend on seotud kohandatud tegevustega ja selle üksused kuvatakse tegevuselogi ripploendis. See leht peaks jääma peidetuks."]
[null,"Tegevus","Ühik"]
[null,{"$f":"TRIM(Kategooria1)","v":"Jalgrattasõit"},{"$f":"Kategooria1Ühik","v":"Miilid"}]
[null,{"$f":"TRIM(Kategooria2)","v":"Ujumine"},{"$f":"Kategooria2Ühik","v":"meetrit"}]
[null,{"$f":"TRIM(Kategooria3)","v":"3. tegevus"},{"$f":"Kategooria3Ühik","v":"sammu"}]
[null,{"$f":"TRIM(Kategooria4)","v":"Tegevus 4"},{"$f":"Kategooria4Ühik","v":"kordust"}]
[null,{"$f":"TRIM(Kategooria5)","v":"5. tegevus"},{"$f":"Kategooria5Ühik","v":"Miilid"}]